fUSD/lending_fUSD_20241106
["ID","MTS","AMOUNT","RATE_DAILY","PERIOD"]
[341435142,1730881754158,-500.0,0.00021973,2]
[341435143,1730881754177,-71672.3802,0.00022,2]
[341435148,1730881757143,-675.043394,0.00022,2]
[341435149,1730881757163,-12622.2092107,0.00022,2]
[341435150,1730881757182,-1235.61799956,0.000225,2]
[341435151,1730881757201,-300.0,0.00023,2]
[341435152,1730881757221,-448.8,0.0002336,3]
[341435153,1730881757245,-272.59738032,0.00023921,2]
[341435154,1730881757264,-500.0,0.00023921,2]
[341435155,1730881757282,-500.0,0.00023921,2]
[341435156,1730881757301,-500.0,0.00023921,2]
[341435157,1730881757320,-500.0,0.00023921,2]
[341435158,1730881757340,-500.0,0.00023921,2]
[341435159,1730881757359,-500.0,0.00023921,2]
[341435160,1730881757378,-500.0,0.00023921,2]
[341435161,1730881757397,-500.0,0.00023921,2]
[341435162,1730881757417,-500.0,0.00023921,2]
[341435163,1730881757436,-500.0,0.00023921,2]
[341435164,1730881757456,-500.0,0.00023921,2]
[341435165,1730881757475,-500.0,0.00023921,2]
[341435166,1730881757497,-500.0,0.00023921,2]
[341435167,1730881757516,-500.0,0.00023921,2]
[341435168,1730881757534,-500.0,0.00023921,2]
[341435169,1730881757553,-500.0,0.00023921,2]
[341435170,1730881757575,-500.0,0.00023921,2]
[341435171,1730881757595,-500.0,0.00023921,2]
[341435172,1730881757615,-500.0,0.00023921,2]
[341435173,1730881757633,-500.0,0.00023921,2]
[341435174,1730881757654,-500.0,0.00023921,2]
[341435175,1730881757672,-500.0,0.00023921,2]
[341435176,1730881757692,-500.0,0.00023921,2]
[341435177,1730881757711,-500.0,0.00023921,2]
[341435178,1730881757735,-500.0,0.00023921,2]
[341435179,1730881757754,-500.0,0.00023921,2]
[341435180,1730881757773,-500.0,0.00023921,2]
[341435181,1730881757792,-500.0,0.00023921,2]
[341435182,1730881757811,-646.55941034,0.00023921,2]
[341435183,1730881757831,-500.0,0.00023921,2]
[341435184,1730881757849,-500.0,0.00023921,2]
[341435185,1730881757869,-500.0,0.00023921,2]
[341435186,1730881757889,-78345.35281187,0.00023922,2]
[341435187,1730881757908,-9656.45587893,0.00024074,2]
[341435188,1730881757927,-1506.96900142,0.00025,2]
[341435189,1730881757947,-350.0,0.00025,2]
[341435190,1730881757967,-301.999999,0.00025,2]
[341435191,1730881757991,-500.0,0.00027,5]
[341435192,1730881758010,-400.0,0.00027,2]
[341435193,1730881758029,-169.8685,0.0003,2]
[341435194,1730881758048,-187.6055,0.0003,2]
[341435195,1730881758068,-158.04,0.00030548,2]
[341435196,1730881758088,-528.21002232,0.000307,30]
[341435197,1730881758108,-536.7528986,0.00030779,2]
[341435198,1730881758128,-253.0,0.00033,7]
[341435199,1730881758147,-253.0,0.00033,10]
[341435200,1730881758166,-253.04,0.00033,20]
[341435201,1730881758190,-780.84,0.00033,2]
[341435202,1730881758210,-1046.72,0.00033296,2]
[341435203,1730881758230,-200.0,0.000342,2]
[341435233,1730881831603,-1765.2517191,0.00034624,2]
[341435236,1730881831671,-2593.7082809,0.00034624,2]
[341435237,1730881831682,-250.0,0.00034842,2]
[341435238,1730881831692,-1187.42,0.00034937,2]
[341435239,1730881831703,-3502.0,0.00035,31]
[341435240,1730881831714,-364.99124972,0.00035,2]
[341435241,1730881831725,-4358.96,0.0003518,2]
[341435242,1730881831735,-177.12,0.00035204,120]
[341435243,1730881831746,-150.46,0.00035224,2]
[341435244,1730881831757,-250.0,0.00035226,2]
[341435245,1730881831768,-5261.50645199,0.00035229,2]
[341435246,1730881831781,-18638.49354801,0.00035229,2]
[341435247,1730881831800,-565.13,0.0003529,2]
[341435248,1730881831811,-150.0,0.00035362,2]
[341435249,1730881831822,-411.539212,0.00035365,2]
[341435250,1730881831834,-1588.460788,0.00035365,2]
[341435251,1730881831844,-200.0,0.00035371,7]
[341435252,1730881831854,-384.0,0.0003542,2]
[341435253,1730881831864,-500.0,0.0003542,2]
[341435254,1730881831874,-227.47,0.00035487,2]
[341435255,1730881831884,-305.75,0.00035491,120]
[341435256,1730881831894,-1739.4205,0.00035547,2]
[341435257,1730881831904,-237.1115,0.00035547,2]
[341435258,1730881831913,-891.57,0.00035547,42]
[341435259,1730881831923,-1046.72,0.00035559,2]
[341435260,1730881831933,-300.0,0.00035616,2]
[341435261,1730881831943,-4358.96,0.00035737,2]
[341435262,1730881831953,-169.8685,0.00035923,2]
[341435263,1730881831962,-167.63945595,0.00035945,2]
[341435264,1730881831972,-187.6055,0.00035982,2]
[341435265,1730881831982,-250.0,0.00036,30]
[341435266,1730881831991,-250.0,0.00036,60]
[341435267,1730881832001,-260.0,0.00036,10]
[341435268,1730881832011,-259.26,0.0003604,10]
[341435269,1730881832020,-446.12,0.0003604,10]
[341435270,1730881832031,-371.77,0.0003604,10]
[341435271,1730881832050,-3999.99999999,0.00036045,4]
[341435272,1730881832060,-2203.07324713,0.0003605,2]
[341435273,1730881832073,-555.66591721,0.0003605,2]
[341435274,1730881832084,-4785.9093968,0.0003605,2]
[341435276,1730881832104,-1067.12215082,0.0003605,2]
[341435279,1730881832116,-40666.92449738,0.0003605,2]
[341435280,1730881832126,-4358.96,0.00036293,2]
[341435283,1730881832135,-161.05,0.00036422,120]
[341435284,1730881832145,-190.16,0.00036475,120]
[341435286,1730881832154,-166.76,0.0003662,2]
[341435288,1730881832164,-2433.0,0.000367,2]
[341435289,1730881832173,-308.39,0.00036764,2]
[341435291,1730881832182,-616.0,0.00036823,2]
[341435293,1730881832192,-250.0,0.00036838,120]
[341435320,1730881832440,-200.0,0.00036838,2]
[341435322,1730881832449,-4358.96,0.00036849,2]
[341435324,1730881832458,-200.0,0.00037,15]
[341435326,1730881832468,-954.6244673,0.00037,38]
[341435328,1730881832477,-703.852566,0.00037,120]
[341435330,1730881832486,-15832.95602073,0.0003715,2]
[341435332,1730881832495,-1000.0,0.00037329,2]
[341435334,1730881832505,-4358.96,0.00037406,2]
[341435336,1730881832514,-5010.51888723,0.0003753,2]
[341435338,1730881832523,-1000.0,0.00037608,2]
[341435340,1730881832532,-2500.0,0.00037608,2]
[341435342,1730881832545,-179.82,0.00037698,2]
[341435344,1730881832555,-3787.84842178,0.00037698,6]
[341435346,1730881832564,-150.18711465,0.00037707,15]
[341435347,1730881832574,-500.0,0.00037707,15]
[341435349,1730881832583,-105527.1924,0.00037708,2]
[341435350,1730881832594,-322.37957111,0.00037708,2]
[341435351,1730881832603,-4144.8945,0.00037755,2]
[341435352,1730881832614,-152.65629686,0.00037798,2]
[341435353,1730881832623,-1199.17540525,0.00037807,30]
[341435354,1730881832633,-500.0,0.00037808,14]
[341435355,1730881832644,-500.0,0.00037808,14]
[341435356,1730881832654,-500.0,0.00037808,14]
[341435357,1730881832664,-507.67797345,0.00037808,14]
[341435358,1730881832673,-500.0,0.00037808,14]
[341435359,1730881832683,-500.0,0.00037808,14]
[341435360,1730881832692,-500.0,0.00037808,14]
[341435361,1730881832703,-500.0,0.00037808,14]
[341435362,1730881832712,-120.19917845,0.00037808,14]
[341435363,1730881832724,-379.80082155,0.00037808,14]
[341435364,1730881832735,-182.67,0.00037808,14]
[341435365,1730881832744,-166.36917845,0.00037808,14]
[341435366,1730881832755,-338.24829238,0.00037808,14]
[341435367,1730881832765,-500.0,0.00037808,14]
[341435368,1730881832775,-500.0,0.00037808,14]
[341435369,1730881832787,-500.0,0.00037808,14]
[341435370,1730881832797,-500.0,0.00037808,14]
[341435371,1730881832807,-500.0,0.00037808,14]
[341435372,1730881832817,-500.0,0.00037808,14]
[341435373,1730881832826,-500.0,0.00037808,14]
[341435374,1730881832836,-500.0,0.00037808,14]
[341435375,1730881832844,-500.0,0.00037808,14]
[341435376,1730881832854,-500.0,0.00037808,14]
[341435377,1730881832863,-500.0,0.00037808,14]
[341435378,1730881832873,-500.0,0.00037808,14]
[341435379,1730881832883,-500.0,0.00037808,14]
[341435380,1730881832892,-1062.63,0.00037808,14]
[341435381,1730881832902,-1062.63,0.00037808,14]
[341435382,1730881832911,-1062.63,0.00037808,14]
[341435383,1730881832920,-1062.63,0.00037808,14]
[341435384,1730881832930,-500.0,0.00037808,14]
[341435385,1730881832938,-302.21148232,0.00037808,14]
[341435386,1730881832948,-500.0,0.00037808,14]
[341435387,1730881832958,-500.0,0.00037808,14]
[341435388,1730881832968,-500.0,0.00037808,14]
[341435389,1730881832977,-500.0,0.00037808,14]
[341435390,1730881832986,-500.0,0.00037808,14]
[341435391,1730881832996,-500.0,0.00037808,14]
[341435392,1730881833005,-500.0,0.00037808,14]
[341435393,1730881833015,-500.0,0.00037808,14]
[341435394,1730881833024,-500.0,0.00037808,14]
[341435395,1730881833036,-500.0,0.00037808,14]
[341435396,1730881833046,-500.0,0.00037808,14]
[341435397,1730881833056,-500.0,0.00037808,14]
[341435398,1730881833066,-533.45207765,0.00037808,14]
[341435399,1730881833076,-536.63472241,0.00037808,14]
[341435400,1730881833086,-500.0,0.00037808,14]
[341435401,1730881833096,-500.0,0.00037808,14]
[341435402,1730881833106,-500.0,0.00037808,14]
[341435403,1730881833115,-534.44656906,0.00037808,14]
[341435404,1730881833125,-500.0,0.00037808,14]
[341435405,1730881833135,-156.56,0.00037808,14]
[341435406,1730881833144,-571.35132564,0.00037808,14]
[341435407,1730881833154,-500.0,0.00037808,14]
[341435408,1730881833164,-500.0,0.00037808,14]
[341435409,1730881833173,-500.0,0.00037808,14]
[341435410,1730881833183,-500.0,0.00037808,14]
[341435411,1730881833193,-500.0,0.00037808,14]
[341435412,1730881833202,-500.0,0.00037808,14]
[341435413,1730881833214,-500.0,0.00037808,14]
[341435414,1730881833223,-25.48130832,0.00037808,14]
[341435415,1730881833237,-474.51869168,0.00037808,14]
[341435416,1730881833247,-500.0,0.00037808,14]
[341435417,1730881833256,-419.34497835,0.00037808,14]
[341435418,1730881833266,-500.0,0.00037808,14]
[341435419,1730881833275,-500.0,0.00037808,14]
[341435420,1730881833286,-500.0,0.00037808,14]
[341435421,1730881833296,-537.07,0.00037808,14]
[341435422,1730881833305,-500.0,0.00037808,14]
[341435423,1730881833315,-352.06,0.00037808,14]
[341435424,1730881833325,-500.0,0.00037808,14]
[341435425,1730881833335,-548.24836215,0.00037808,14]
[341435426,1730881833345,-500.0,0.00037808,14]
[341435427,1730881833356,-500.0,0.00037808,14]
[341435428,1730881833365,-500.0,0.00037808,14]
[341435429,1730881833375,-500.0,0.00037808,14]
[341435430,1730881833384,-500.0,0.00037808,14]
[341435431,1730881833394,-500.0,0.00037808,14]
[341435432,1730881833404,-500.0,0.00037808,14]
[341435433,1730881833413,-500.0,0.00037808,14]
[341435434,1730881833423,-500.0,0.00037808,14]
[341435435,1730881833432,-500.0,0.00037808,14]
[341435436,1730881833442,-500.0,0.00037808,14]
[341435437,1730881833453,-500.0,0.00037808,14]
[341435438,1730881833462,-395.72411364,0.00037808,14]
[341435439,1730881837716,-500.0,0.00037697,15]
[341435440,1730881837727,-2158.76669817,0.00037808,2]
[341435441,1730881837994,-250.3920289,0.00037697,15]
[341435442,1730881838006,-249.6079711,0.00037697,15]
[341435443,1730881838016,-614.65594103,0.00037697,15]
[341435444,1730881838026,-1515.4521999,0.00037808,2]
[341435445,1730881838035,-104.27588636,0.00037808,14]
[341435446,1730881838047,-500.0,0.00037808,14]
[341435447,1730881838057,-500.0,0.00037808,7]
[341435448,1730881838066,-55.07916206,0.00037808,14]
[341435449,1730881838082,-281.60160435,0.00037808,14]
[341435450,1730881838091,-622.11,0.00037808,14]
[341435451,1730881838101,-500.0,0.00037808,14]
[341435452,1730881838110,-500.0,0.00037808,14]
[341435454,1730881838119,-500.0,0.00037808,14]
[341435456,1730881838129,-500.0,0.00037808,14]
[341435458,1730881838138,-92.36312555,0.00037808,14]
[341435460,1730881838149,-282.83754766,0.00037808,14]
[341435462,1730881838161,-128.78133412,0.00037808,14]
[341435464,1730881838170,-500.0,0.00037808,14]
[341435466,1730881838179,-500.0,0.00037808,14]
[341435468,1730881838188,-500.0,0.00037808,14]
[341435470,1730881838197,-500.0,0.00037808,14]
[341435472,1730881838209,-500.0,0.00037808,14]
[341435474,1730881838220,-549.28999999,0.00037808,14]
[341435476,1730881838229,-500.0,0.00037808,14]
[341435477,1730881838238,-500.0,0.00037808,14]
[341435478,1730881838247,-500.0,0.00037808,14]
[341435479,1730881838256,-103.86905076,0.00037808,14]
[341435480,1730881838268,-219.64094924,0.00037808,14]
[341435481,1730881838278,-379.60137054,0.00037808,14]
[341435483,1730881838287,-500.0,0.00037808,14]
[341435484,1730881838300,-500.0,0.00037808,14]
[341435485,1730881838310,-500.0,0.00037808,14]
[341435486,1730881838319,-500.0,0.00037808,14]
[341435487,1730881838328,-500.0,0.00037808,14]
[341435488,1730881838337,-500.0,0.00037808,14]
[341435489,1730881838347,-500.0,0.00037808,14]
[341435490,1730881838356,-500.0,0.00037808,14]
[341435491,1730881838366,-500.0,0.00037808,14]
[341435492,1730881838375,-500.0,0.00037808,14]
[341435493,1730881838385,-500.0,0.00037808,14]
[341435494,1730881838395,-500.0,0.00037808,14]
[341435495,1730881838404,-500.0,0.00037808,14]
[341435496,1730881838414,-500.0,0.00037808,14]
[341435497,1730881838423,-500.0,0.00037808,14]
[341435498,1730881838433,-500.0,0.00037808,14]
[341435500,1730881838441,-213.08696069,0.00037808,14]
[341435502,1730881838451,-508.29199859,0.00037808,14]
[341435504,1730881838460,-424.79,0.00037808,14]
[341435506,1730881838470,-500.0,0.00037808,14]
[341435508,1730881838480,-500.0,0.00037808,14]
[341435510,1730881838489,-500.0,0.00037808,14]
[341435512,1730881838498,-594.76341834,0.00037808,14]
[341435513,1730881838508,-500.0,0.00037808,14]
[341435515,1730881838518,-500.0,0.00037808,14]
[341435517,1730881838527,-500.0,0.00037808,14]
[341435519,1730881838536,-500.0,0.00037808,14]
[341435521,1730881838550,-500.0,0.00037808,14]
[341435523,1730881838559,-500.0,0.00037808,14]
[341435525,1730881838570,-500.0,0.00037808,14]
[341435527,1730881838580,-500.0,0.00037808,14]
[341435529,1730881838589,-500.0,0.00037808,14]
[341435531,1730881838603,-518.46,0.00037808,14]
[341435533,1730881838612,-587.23380901,0.00037808,14]
[341435535,1730881838622,-500.0,0.00037808,14]
[341435537,1730881838632,-500.0,0.00037808,14]
[341435539,1730881838642,-500.0,0.00037808,14]
[341435541,1730881838651,-500.0,0.00037808,14]
[341435543,1730881838660,-500.0,0.00037808,14]
[341435545,1730881838670,-500.0,0.00037808,14]
[341435547,1730881838680,-500.0,0.00037808,14]
[341435549,1730881838690,-500.0,0.00037808,14]
[341435551,1730881838699,-500.0,0.00037808,14]
[341435553,1730881838710,-158.71,0.00037808,14]
[341435554,1730881838720,-500.0,0.00037808,14]
[341435556,1730881838729,-500.0,0.00037808,14]
[341435558,1730881838738,-500.0,0.00037808,14]
[341435560,1730881838747,-500.0,0.00037808,14]
[341435562,1730881838757,-500.0,0.00037808,14]
[341435564,1730881838766,-500.0,0.00037808,14]
[341435565,1730881838776,-500.0,0.00037808,14]
[341435567,1730881838786,-500.0,0.00037808,14]
[341435569,1730881838798,-500.0,0.00037808,14]
[341435570,1730881838807,-500.0,0.00037808,14]
[341435571,1730881838817,-182.22,0.00037808,14]
[341435572,1730881838827,-500.0,0.00037808,14]
[341435573,1730881838836,-500.0,0.00037808,14]
[341435574,1730881838845,-500.0,0.00037808,14]
[341435575,1730881838855,-500.0,0.00037808,14]
[341435576,1730881838864,-500.0,0.00037808,14]
[341435577,1730881838873,-640.62,0.00037808,14]
[341435578,1730881838883,-500.0,0.00037808,14]
[341435579,1730881838892,-500.0,0.00037808,14]
[341435580,1730881838902,-500.0,0.00037808,14]
[341435581,1730881838911,-500.0,0.00037808,14]
[341435582,1730881838921,-368.47,0.00037808,14]
[341435583,1730881838930,-500.0,0.00037808,14]
[341435584,1730881838940,-243.85237802,0.00037808,14]
[341435585,1730881838951,-635.25,0.00037808,14]
[341435586,1730881838960,-500.0,0.00037808,14]
[341435587,1730881838970,-500.0,0.00037808,14]
[341435588,1730881838981,-500.0,0.00037808,14]
[341435589,1730881838990,-500.0,0.00037808,14]
[341435590,1730881839000,-471.56515594,0.00037808,14]
[341435591,1730881839016,-28.43484406,0.00037808,14]
[341435592,1730881839025,-336.27515594,0.00037808,14]
[341435593,1730881839037,-163.52404406,0.00037808,14]
[341435594,1730881839052,-500.0,0.00037808,14]
[341435595,1730881839062,-416.3943814,0.00037808,14]
[341435596,1730881839071,-500.0,0.00037808,14]
[341435597,1730881839081,-339.77109124,0.00037808,14]
[341435598,1730881839091,-500.0,0.00037808,14]
[341435599,1730881839101,-500.0,0.00037808,14]
[341435600,1730881839110,-500.0,0.00037808,14]
[341435601,1730881839120,-500.0,0.00037808,14]
[341435602,1730881839130,-500.0,0.00037808,14]
[341435603,1730881839139,-562.67788808,0.00037808,14]
[341435604,1730881839149,-367.45609132,0.00037808,14]
[341435605,1730881839159,-500.0,0.00037808,14]
[341435606,1730881839169,-168.244977,0.00037808,14]
[341435607,1730881839179,-168.244977,0.00037808,14]
[341435608,1730881839188,-500.0,0.00037808,14]
[341435609,1730881839198,-577.21,0.00037808,14]
[341435610,1730881839207,-500.0,0.00037808,14]
[341435611,1730881839216,-151.102331,0.00037808,14]
[341435612,1730881839225,-151.102331,0.00037808,14]
[341435613,1730881839235,-500.0,0.00037808,14]
[341435614,1730881839244,-500.0,0.00037808,14]
[341435615,1730881839254,-161.821463,0.00037808,14]
[341435616,1730881839263,-500.0,0.00037808,14]
[341435617,1730881839272,-500.0,0.00037808,14]
[341435618,1730881839282,-575.70161806,0.00037808,14]
[341435619,1730881839296,-500.0,0.00037808,14]
[341435620,1730881839307,-577.69887499,0.00037808,14]
[341435621,1730881839316,-500.0,0.00037808,14]
[341435622,1730881839325,-504.6924761,0.00037808,14]
[341435623,1730881839334,-500.0,0.00037808,14]
[341435624,1730881839344,-500.0,0.00037808,14]
[341435625,1730881839353,-513.83599337,0.00037808,14]
[341435626,1730881839363,-500.0,0.00037808,14]
[341435627,1730881839372,-500.0,0.00037808,14]
[341435628,1730881839383,-500.0,0.00037808,14]
[341435630,1730881839393,-500.0,0.00037808,14]
[341435631,1730881839402,-500.0,0.00037808,14]
[341435632,1730881839411,-500.0,0.00037808,14]
[341435633,1730881839420,-500.0,0.00037808,14]
[341435634,1730881839429,-500.0,0.00037808,14]
[341435635,1730881839439,-500.0,0.00037808,14]
[341435636,1730881839448,-500.0,0.00037808,14]
[341435637,1730881839457,-500.0,0.00037808,14]
[341435638,1730881839467,-500.0,0.00037808,14]
[341435639,1730881839476,-217.47389795,0.00037808,14]
[341435640,1730881839486,-500.0,0.00037808,14]
[341435641,1730881839495,-500.0,0.00037808,14]
[341435642,1730881839505,-500.0,0.00037808,14]
[341435643,1730881839514,-500.0,0.00037808,14]
[341435644,1730881839523,-500.0,0.00037808,14]
[341435645,1730881839533,-500.0,0.00037808,14]
[341435646,1730881839544,-500.0,0.00037808,14]
[341435647,1730881839554,-500.0,0.00037808,14]
[341435648,1730881839562,-500.0,0.00037808,14]
[341435649,1730881839572,-500.0,0.00037808,14]
[341435650,1730881839581,-500.0,0.00037808,14]
[341435652,1730881839590,-500.0,0.00037808,14]
[341435653,1730881839600,-500.0,0.00037808,14]
[341435654,1730881839614,-500.0,0.00037808,14]
[341435655,1730881839624,-500.0,0.00037808,14]
[341435656,1730881839633,-500.0,0.00037808,14]
[341435657,1730881839643,-500.0,0.00037808,14]
[341435658,1730881839652,-500.0,0.00037808,14]
[341435659,1730881839662,-500.0,0.00037808,14]
[341435660,1730881839671,-500.0,0.00037808,14]
[341435661,1730881839682,-500.0,0.00037808,14]
[341435662,1730881839692,-500.0,0.00037808,14]
[341435663,1730881839701,-1601.78,0.00037808,14]
[341435664,1730881839710,-500.0,0.00037808,14]
[341435665,1730881839720,-1601.78,0.00037808,14]
[341435666,1730881839729,-1601.78,0.00037808,14]
[341435667,1730881839738,-1601.78,0.00037808,14]
[341435668,1730881839748,-1601.78,0.00037808,14]
[341435669,1730881839757,-500.0,0.00037808,14]
[341435670,1730881839766,-500.0,0.00037808,14]
[341435671,1730881839775,-447.57416896,0.00037808,14]
[341435672,1730881839849,-52.42583104,0.00037808,14]
[341435673,1730881839858,-256.5120396,0.00037808,14]
[341435674,1730881839870,-243.4879604,0.00037808,14]
[341435675,1730881839879,-269.0811316,0.00037808,14]
[341435676,1730881839890,-230.9188684,0.00037808,14]
[341435677,1730881839900,-500.0,0.00037808,14]
[341435678,1730881839909,-500.0,0.00037808,14]
[341435679,1730881839918,-500.0,0.00037808,14]
[341435680,1730881839928,-500.0,0.00037808,14]
[341435681,1730881839937,-500.0,0.00037808,14]
[341435682,1730881839946,-500.0,0.00037808,14]
[341435683,1730881839955,-500.0,0.00037808,14]
[341435684,1730881839964,-500.0,0.00037808,14]
[341435685,1730881839974,-500.0,0.00037808,14]
[341435686,1730881839983,-500.0,0.00037808,14]
[341435687,1730881839992,-508.80598501,0.00037808,14]
[341435688,1730881840019,-1346.1513007,0.00037607,15]
[341435689,1730881840028,-420.35743639,0.00037618,2]
[341435690,1730881840037,-53.27211541,0.00037808,14]
[341435691,1730881840049,-500.0,0.00037808,14]
[341435692,1730881840058,-500.0,0.00037808,14]
[341435693,1730881840067,-500.0,0.00037808,14]
[341435694,1730881840076,-500.0,0.00037808,14]
[341435695,1730881840086,-500.0,0.00037808,14]
[341435696,1730881840095,-500.0,0.00037808,14]
[341435697,1730881840308,-500.0,0.00037808,14]
[341435698,1730881840323,-500.0,0.00037808,14]
[341435699,1730881840334,-500.0,0.00037808,14]
[341435700,1730881840344,-500.0,0.00037808,14]
[341435701,1730881840354,-159.46586378,0.00037808,14]
[341435702,1730881840370,-262.42209047,0.00037808,14]
[341435703,1730881840381,-78.11204575,0.00037808,14]
[341435704,1730881840391,-500.0,0.00037808,14]
[341435705,1730881840400,-500.0,0.00037808,14]
[341435706,1730881840409,-281.77595425,0.00037808,14]
[341435707,1730881840420,-218.22404575,0.00037808,14]
[341435708,1730881840429,-500.0,0.00037808,14]
[341435709,1730881840438,-388.2,0.00037808,14]
[341435710,1730881840447,-190.67595425,0.00037808,14]
[341435729,1730881842728,-621.29807048,0.00037708,2]
[341435731,1730881842737,-309.81,0.00037798,10]
[341435732,1730881842747,-455.13098025,0.00037807,15]
[341435733,1730881842757,-59.32404575,0.00037808,14]
[341435735,1730881842766,-500.0,0.00037808,14]
[341435737,1730881842775,-500.0,0.00037808,14]
[341435739,1730881842784,-500.0,0.00037808,14]
[341435740,1730881842796,-500.0,0.00037808,14]
[341435741,1730881842805,-500.0,0.00037808,14]
[341435742,1730881842814,-500.0,0.00037808,14]
[341435743,1730881842823,-500.0,0.00037808,14]
[341435744,1730881842831,-500.0,0.00037808,14]
[341435745,1730881842840,-500.0,0.00037808,14]
[341435746,1730881842849,-500.0,0.00037808,14]
[341435747,1730881842858,-500.0,0.00037808,14]
[341435748,1730881842867,-500.0,0.00037808,14]
[341435749,1730881842876,-500.0,0.00037808,14]
[341435750,1730881842885,-500.0,0.00037808,14]
[341435751,1730881842895,-500.0,0.00037808,14]
[341435752,1730881842904,-241.0290815,0.00037808,14]
[341435753,1730881842913,-500.0,0.00037808,14]
[341435754,1730881842922,-500.0,0.00037808,14]
[341435755,1730881842931,-500.0,0.00037808,14]
[341435756,1730881842940,-500.0,0.00037808,14]
[341435757,1730881842950,-500.0,0.00037808,14]
[341435758,1730881842959,-500.0,0.00037808,14]
[341435759,1730881842968,-500.0,0.00037808,14]
[341435760,1730881842978,-491.04862473,0.00037808,14]
[341435761,1730881842990,-1.18953299,0.00037808,14]
[341435762,1730881842999,-604.85344016,0.00037808,14]
[341435763,1730881843009,-500.0,0.00037808,14]
[341435764,1730881843018,-500.0,0.00037808,14]
[341435765,1730881843027,-500.0,0.00037808,14]
[341435766,1730881843036,-500.0,0.00037808,14]
[341435767,1730881843049,-500.0,0.00037808,14]
[341435768,1730881843059,-500.0,0.00037808,14]
[341435769,1730881843068,-500.0,0.00037808,14]
[341435770,1730881843078,-500.0,0.00037808,14]
[341435771,1730881843087,-528.07033501,0.00037808,14]
[341435772,1730881843097,-500.0,0.00037808,14]
[341435773,1730881843106,-344.19679075,0.00037808,14]
[341435774,1730881843118,-155.80320925,0.00037808,14]
[341435775,1730881843127,-504.09555596,0.00037808,14]
[341435776,1730881843136,-500.0,0.00037808,14]
[341435777,1730881843146,-500.0,0.00037808,14]
[341435778,1730881843155,-500.0,0.00037808,14]
[341435779,1730881843164,-500.0,0.00037808,14]
[341435780,1730881843174,-500.0,0.00037808,14]
[341435781,1730881843183,-500.0,0.00037808,14]
[341435782,1730881843192,-500.0,0.00037808,14]
[341435783,1730881843201,-500.0,0.00037808,14]
[341435784,1730881843210,-500.0,0.00037808,14]
[341435785,1730881843218,-500.0,0.00037808,14]
[341435786,1730881843227,-481.77932047,0.00037808,14]
[341435787,1730881843236,-500.0,0.00037808,14]
[341435788,1730881843245,-500.0,0.00037808,14]
[341435789,1730881843255,-500.0,0.00037808,14]
[341435790,1730881843264,-500.0,0.00037808,14]
[341435791,1730881843273,-560.05725281,0.00037808,14]
[341435792,1730881843283,-500.0,0.00037808,14]
[341435793,1730881843292,-500.0,0.00037808,14]
[341435794,1730881843303,-500.0,0.00037808,14]
[341435795,1730881843317,-500.0,0.00037808,14]
[341435796,1730881843326,-500.0,0.00037808,14]